[Event "Titled Tuesday Blitz April 4 Late 2023"]
[White "Fonseca Manrique, Enrique"]
[Black "Naroditsky, Daniel"]
[WhiteFideId "5114330"]
[BlackFideId "2026961"]
[WhiteElo "2539"]
[BlackElo "2633"]
[Result "0-1"]
[Round "01"]
[TimeControl "180+2"]
[Date "2023.04.04"]
[WhiteClock "0:00:02"]
[BlackClock "0:00:28"]

1. e4 {[%clk 0:02:59]}  c5 {[%clk 0:02:58]} 2. Nc3 {[%clk 0:02:58]}  a6 {[%clk 0:02:54]} 3. f4 {[%clk 0:02:58]}  b5 {[%clk 0:02:52]} 4. d4 {[%clk 0:02:58]}  cxd4 {[%clk 0:02:51]} 5. Qxd4 {[%clk 0:02:58]}  Nc6 {[%clk 0:02:42]} 6. Qf2 {[%clk 0:02:55]}  Bb7 {[%clk 0:02:40]} 7. Nf3 {[%clk 0:02:52]}  e6 {[%clk 0:02:38]} 8. Bd3 {[%clk 0:02:49]}  Nf6 {[%clk 0:02:32]} 9. h3 {[%clk 0:02:48]}  d6 {[%clk 0:02:25]} 10. Be3 {[%clk 0:02:48]}  Be7 {[%clk 0:02:24]} 11. O-O-O {[%clk 0:02:38]}  Qc7 {[%clk 0:02:16]} 12. Kb1 {[%clk 0:02:35]}  Rc8 {[%clk 0:02:15]} 13. g4 {[%clk 0:02:29]}  Nd7 {[%clk 0:02:15]} 14. h4 {[%clk 0:02:06]}  Nc5 {[%clk 0:02:14]} 15. f5 {[%clk 0:01:59]}  Bf6 {[%clk 0:01:57]} 16. Nd4 {[%clk 0:01:52]}  b4 {[%clk 0:01:43]} 17. Nce2 {[%clk 0:01:36]}  Ne5 {[%clk 0:01:42]} 18. g5 {[%clk 0:01:27]}  Be7 {[%clk 0:01:41]} 19. Qg3 {[%clk 0:00:54]}  Ncxd3 {[%clk 0:01:16]} 20. cxd3 {[%clk 0:00:52]}  Nxd3 {[%clk 0:01:17]} 21. fxe6 {[%clk 0:00:41]}  O-O {[%clk 0:01:06]} 22. Rhf1 {[%clk 0:00:21]}  Bxe4 {[%clk 0:01:04]} 23. Ka1 {[%clk 0:00:21]}  f5 {[%clk 0:00:45]} 24. h5 {[%clk 0:00:19]}  d5 {[%clk 0:00:35]} 25. Nf4 {[%clk 0:00:18]}  Nxb2 {[%clk 0:00:32]} 26. Rc1 {[%clk 0:00:11]}  Nc4 {[%clk 0:00:32]} 27. h6 {[%clk 0:00:09]}  g6 {[%clk 0:00:30]} 28. Qe1 {[%clk 0:00:07]}  Qe5 {[%clk 0:00:28]} 29. Bg1 {[%clk 0:00:02]}  Bxg5 {[%clk 0:00:28]} 0-1


[Site "https://www.chess.com"]

[Event "Titled Tuesday Blitz April 4 Late 2023"]
[White "Dubov, Daniil"]
[Black "Escanor89"]
[WhiteFideId "24126055"]
[WhiteElo "2802"]
[BlackElo "2537"]
[Result "1-0"]
[Round "01"]
[TimeControl "180+2"]
[Date "2023.04.04"]
[WhiteClock "0:00:36"]
[BlackClock "0:00:05"]

1. d4 {[%clk 0:02:59]}  Nf6 {[%clk 0:02:59]} 2. Nf3 {[%clk 0:02:56]}  e6 {[%clk 0:02:59]} 3. Bg5 {[%clk 0:02:56]}  Be7 {[%clk 0:02:57]} 4. Nbd2 {[%clk 0:02:56]}  c5 {[%clk 0:02:55]} 5. e3 {[%clk 0:02:54]}  cxd4 {[%clk 0:02:54]} 6. exd4 {[%clk 0:02:54]}  O-O {[%clk 0:02:53]} 7. Bd3 {[%clk 0:02:55]}  b6 {[%clk 0:02:53]} 8. O-O {[%clk 0:02:55]}  Bb7 {[%clk 0:02:53]} 9. Re1 {[%clk 0:02:55]}  d6 {[%clk 0:02:52]} 10. a4 {[%clk 0:02:47]}  a6 {[%clk 0:02:51]} 11. c3 {[%clk 0:02:46]}  Nbd7 {[%clk 0:02:51]} 12. Qe2 {[%clk 0:02:46]}  Re8 {[%clk 0:02:50]} 13. h3 {[%clk 0:02:45]}  Qc7 {[%clk 0:02:47]} 14. Bf4 {[%clk 0:02:43]}  Nf8 {[%clk 0:02:44]} 15. Bh2 {[%clk 0:02:43]}  Qc6 {[%clk 0:02:34]} 16. Nc4 {[%clk 0:02:40]}  Ng6 {[%clk 0:02:27]} 17. a5 {[%clk 0:02:36]}  b5 {[%clk 0:02:26]} 18. Nb6 {[%clk 0:02:36]}  Rad8 {[%clk 0:02:25]} 19. Rac1 {[%clk 0:02:35]}  Nd5 {[%clk 0:02:19]} 20. Be4 {[%clk 0:02:26]}  Ndf4 {[%clk 0:02:01]} 21. Bxf4 {[%clk 0:02:14]}  Nxf4 {[%clk 0:01:58]} 22. Qd2 {[%clk 0:02:14]}  Nd5 {[%clk 0:01:41]} 23. Nxd5 {[%clk 0:02:13]}  exd5 {[%clk 0:01:41]} 24. Bd3 {[%clk 0:02:12]}  Bf6 {[%clk 0:01:33]} 25. Nh2 {[%clk 0:02:11]}  Bc8 {[%clk 0:01:24]} 26. Nf1 {[%clk 0:02:07]}  Qc7 {[%clk 0:01:16]} 27. Ne3 {[%clk 0:02:07]}  Bg5 {[%clk 0:00:47]} 28. h4 {[%clk 0:01:38]}  Bxe3 {[%clk 0:00:30]} 29. Rxe3 {[%clk 0:01:37]}  Rxe3 {[%clk 0:00:30]} 30. Qxe3 {[%clk 0:01:36]}  Qxa5 {[%clk 0:00:19]} 31. Qe7 {[%clk 0:01:29]}  Be6 {[%clk 0:00:18]} 32. Re1 {[%clk 0:01:26]}  Qb6 {[%clk 0:00:17]} 33. f4 {[%clk 0:01:19]}  Rf8 {[%clk 0:00:15]} 34. Bxh7+ {[%clk 0:00:59]}  Kxh7 {[%clk 0:00:16]} 35. Qxf8 {[%clk 0:00:59]}  b4 {[%clk 0:00:14]} 36. f5 {[%clk 0:00:57]}  Bxf5 {[%clk 0:00:14]} 37. Qxf7 {[%clk 0:00:57]}  Be4 {[%clk 0:00:14]} 38. Re3 {[%clk 0:00:49]}  bxc3 {[%clk 0:00:11]} 39. bxc3 {[%clk 0:00:43]}  Qb1+ {[%clk 0:00:07]} 40. Kh2 {[%clk 0:00:42]}  Bg6 {[%clk 0:00:07]} 41. Qxd5 {[%clk 0:00:42]}  a5 {[%clk 0:00:04]} 42. Qxa5 {[%clk 0:00:37]}  Qc1 {[%clk 0:00:04]} 43. Qg5 {[%clk 0:00:38]}  Qf1 {[%clk 0:00:03]} 44. Rg3 {[%clk 0:00:37]}  Qf7 {[%clk 0:00:03]} 45. Qxg6+ {[%clk 0:00:34]}  Qxg6 {[%clk 0:00:03]} 46. Rxg6 {[%clk 0:00:35]}  Kxg6 {[%clk 0:00:04]} 47. g4 {[%clk 0:00:35]}  Kf6 {[%clk 0:00:04]} 48. Kg3 {[%clk 0:00:35]}  g6 {[%clk 0:00:04]} 49. c4 {[%clk 0:00:35]}  Ke6 {[%clk 0:00:04]} 50. Kf4 {[%clk 0:00:36]}  Kf6 {[%clk 0:00:04]} 51. Ke4 {[%clk 0:00:36]}  Ke6 {[%clk 0:00:05]} 52. d5+ {[%clk 0:00:36]}  Kf6 {[%clk 0:00:05]} 53. Kd4 {[%clk 0:00:36]} 1-0


[Site "https://www.chess.com"]

[Event "Titled Tuesday Blitz April 4 Late 2023"]
[White "Duda, Jan-Krzysztof"]
[Black "Ortega Amarelle, Mariano"]
[WhiteFideId "1170546"]
[BlackFideId "3504301"]
[WhiteElo "2790"]
[BlackElo "2406"]
[Result "1-0"]
[Round "01"]
[TimeControl "180+2"]
[Date "2023.04.04"]
[WhiteClock "0:01:15"]
[BlackClock "0:01:05"]

1. d4 {[%clk 0:02:56]}  d5 {[%clk 0:02:58]} 2. c4 {[%clk 0:02:56]}  c6 {[%clk 0:02:55]} 3. Nc3 {[%clk 0:02:55]}  Nf6 {[%clk 0:02:54]} 4. Nf3 {[%clk 0:02:55]}  dxc4 {[%clk 0:02:52]} 5. a4 {[%clk 0:02:56]}  Bf5 {[%clk 0:02:52]} 6. Ne5 {[%clk 0:02:56]}  e6 {[%clk 0:02:52]} 7. f3 {[%clk 0:02:54]}  Bb4 {[%clk 0:02:52]} 8. Nxc4 {[%clk 0:02:51]}  O-O {[%clk 0:02:47]} 9. Kf2 {[%clk 0:02:49]}  a5 {[%clk 0:02:40]} 10. e4 {[%clk 0:02:49]}  Bg6 {[%clk 0:02:41]} 11. Be3 {[%clk 0:02:48]}  Nbd7 {[%clk 0:02:41]} 12. g4 {[%clk 0:02:38]}  c5 {[%clk 0:02:38]} 13. d5 {[%clk 0:02:29]}  exd5 {[%clk 0:02:37]} 14. Nxd5 {[%clk 0:02:24]}  Nxd5 {[%clk 0:02:35]} 15. Qxd5 {[%clk 0:02:25]}  Qc7 {[%clk 0:02:23]} 16. h4 {[%clk 0:02:22]}  Rad8 {[%clk 0:01:54]} 17. h5 {[%clk 0:02:11]}  Nf6 {[%clk 0:01:53]} 18. Qe5 {[%clk 0:02:07]}  Qxe5 {[%clk 0:01:47]} 19. Nxe5 {[%clk 0:02:08]}  Bxe4 {[%clk 0:01:47]} 20. g5 {[%clk 0:01:55]}  Nd5 {[%clk 0:01:47]} 21. fxe4 {[%clk 0:01:55]}  Nxe3 {[%clk 0:01:48]} 22. Kxe3 {[%clk 0:01:56]}  Bd2+ {[%clk 0:01:48]} 23. Kf3 {[%clk 0:01:55]}  Bxg5 {[%clk 0:01:49]} 24. Bc4 {[%clk 0:01:52]}  Rd2 {[%clk 0:01:44]} 25. Rad1 {[%clk 0:01:44]}  Rxb2 {[%clk 0:01:43]} 26. Rd7 {[%clk 0:01:43]}  Rb6 {[%clk 0:01:37]} 27. Kg4 {[%clk 0:01:39]}  h6 {[%clk 0:01:30]} 28. Bxf7+ {[%clk 0:01:27]}  Kh7 {[%clk 0:01:28]} 29. Rf1 {[%clk 0:01:28]}  Rf6 {[%clk 0:01:25]} 30. Rxf6 {[%clk 0:01:24]}  Bxf6 {[%clk 0:01:17]} 31. Ng6 {[%clk 0:01:17]}  Rb8 {[%clk 0:01:13]} 32. e5 {[%clk 0:01:17]}  Bg5 {[%clk 0:01:13]} 33. Bc4 {[%clk 0:01:16]}  Re8 {[%clk 0:01:10]} 34. e6 {[%clk 0:01:16]}  b6 {[%clk 0:01:05]} 35. e7 {[%clk 0:01:15]} 1-0


[Site "https://www.chess.com"]

[Event "Titled Tuesday Blitz April 4 Late 2023"]
[White "Firouzja, Alireza"]
[Black "Richter, Paul"]
[WhiteFideId "12573981"]
[BlackFideId "2046350"]
[WhiteElo "2904"]
[BlackElo "2528"]
[Result "1-0"]
[Round "01"]
[TimeControl "180+2"]
[Date "2023.04.04"]
[WhiteClock "0:00:34"]
[BlackClock "0:00:08"]

1. d4 {[%clk 0:02:59]}  Nf6 {[%clk 0:02:57]} 2. c4 {[%clk 0:02:59]}  g6 {[%clk 0:02:56]} 3. Nc3 {[%clk 0:02:59]}  Bg7 {[%clk 0:02:57]} 4. e4 {[%clk 0:03:00]}  O-O {[%clk 0:02:57]} 5. Be3 {[%clk 0:02:54]}  d6 {[%clk 0:02:57]} 6. h3 {[%clk 0:02:53]}  Na6 {[%clk 0:02:56]} 7. g4 {[%clk 0:02:49]}  c5 {[%clk 0:02:46]} 8. d5 {[%clk 0:02:48]}  e6 {[%clk 0:02:41]} 9. Nge2 {[%clk 0:02:47]}  exd5 {[%clk 0:02:40]} 10. cxd5 {[%clk 0:02:48]}  h5 {[%clk 0:02:34]} 11. g5 {[%clk 0:02:39]}  Nd7 {[%clk 0:02:29]} 12. Bg2 {[%clk 0:02:39]}  Nc7 {[%clk 0:02:24]} 13. a4 {[%clk 0:02:35]}  b6 {[%clk 0:02:19]} 14. O-O {[%clk 0:02:31]}  a6 {[%clk 0:02:12]} 15. f4 {[%clk 0:02:30]}  Rb8 {[%clk 0:02:11]} 16. f5 {[%clk 0:02:29]}  Be5 {[%clk 0:02:05]} 17. f6 {[%clk 0:02:19]}  b5 {[%clk 0:01:59]} 18. axb5 {[%clk 0:02:19]}  axb5 {[%clk 0:02:00]} 19. Nf4 {[%clk 0:02:18]}  Bxf4 {[%clk 0:01:54]} 20. Rxf4 {[%clk 0:02:12]}  b4 {[%clk 0:01:46]} 21. Ne2 {[%clk 0:02:12]}  Re8 {[%clk 0:01:33]} 22. Ng3 {[%clk 0:02:12]}  Nb6 {[%clk 0:01:10]} 23. Bc1 {[%clk 0:01:42]}  Re5 {[%clk 0:00:56]} 24. Rh4 {[%clk 0:01:36]}  c4 {[%clk 0:00:35]} 25. Nxh5 {[%clk 0:01:33]}  c3 {[%clk 0:00:34]} 26. b3 {[%clk 0:01:17]}  Bd7 {[%clk 0:00:20]} 27. Ng7 {[%clk 0:01:15]}  Ra8 {[%clk 0:00:17]} 28. Rxa8 {[%clk 0:00:59]}  Qxa8 {[%clk 0:00:18]} 29. Bf4 {[%clk 0:00:59]}  Qa2 {[%clk 0:00:15]} 30. Rh6 {[%clk 0:00:52]}  c2 {[%clk 0:00:12]} 31. Qe1 {[%clk 0:00:38]}  Qb1 {[%clk 0:00:12]} 32. Bc1 {[%clk 0:00:39]}  Ncxd5 {[%clk 0:00:11]} 33. Kh2 {[%clk 0:00:37]}  Rxg5 {[%clk 0:00:08]} 34. Qh4 {[%clk 0:00:34]}  Nxf6 {[%clk 0:00:08]} 35. Rh8+ {[%clk 0:00:33]}  Kxg7 {[%clk 0:00:08]} 36. Qh6# {[%clk 0:00:34]} 1-0


[Site "https://www.chess.com"]

[Event "Titled Tuesday Blitz April 4 Late 2023"]
[White "Zeynalli, Rashad"]
[Black "Fedoseev, Vladimir"]
[WhiteFideId "13403320"]
[BlackFideId "24130737"]
[WhiteElo "2125"]
[BlackElo "2752"]
[Result "0-1"]
[Round "01"]
[TimeControl "180+2"]
[Date "2023.04.04"]
[WhiteClock "0:00:39"]
[BlackClock "0:00:16"]

1. d4 {[%clk 0:02:59]}  b5 {[%clk 0:02:56]} 2. e4 {[%clk 0:02:56]}  Bb7 {[%clk 0:02:56]} 3. Bd3 {[%clk 0:02:56]}  e6 {[%clk 0:02:54]} 4. Nf3 {[%clk 0:02:56]}  c5 {[%clk 0:02:54]} 5. c3 {[%clk 0:02:56]}  c4 {[%clk 0:02:41]} 6. Bc2 {[%clk 0:02:56]}  d5 {[%clk 0:02:42]} 7. e5 {[%clk 0:02:56]}  h6 {[%clk 0:02:36]} 8. Nbd2 {[%clk 0:02:53]}  Nc6 {[%clk 0:02:35]} 9. Nf1 {[%clk 0:02:52]}  Nge7 {[%clk 0:02:33]} 10. Ng3 {[%clk 0:02:52]}  Nc8 {[%clk 0:02:33]} 11. Nh5 {[%clk 0:02:47]}  Nb6 {[%clk 0:02:31]} 12. h4 {[%clk 0:02:44]}  a5 {[%clk 0:02:24]} 13. Rh3 {[%clk 0:02:43]}  Kd7 {[%clk 0:02:19]} 14. Rg3 {[%clk 0:02:38]}  g6 {[%clk 0:02:18]} 15. Nf6+ {[%clk 0:02:37]}  Kc7 {[%clk 0:02:16]} 16. Ng4 {[%clk 0:02:20]}  b4 {[%clk 0:02:06]} 17. Nd2 {[%clk 0:02:03]}  Qxh4 {[%clk 0:02:02]} 18. Qf3 {[%clk 0:02:03]}  Qe7 {[%clk 0:01:41]} 19. Nf1 {[%clk 0:01:52]}  a4 {[%clk 0:01:33]} 20. a3 {[%clk 0:01:49]}  bxc3 {[%clk 0:01:31]} 21. bxc3 {[%clk 0:01:49]}  Na5 {[%clk 0:01:31]} 22. Rh3 {[%clk 0:01:41]}  Nb3 {[%clk 0:01:29]} 23. Bxb3 {[%clk 0:01:33]}  axb3 {[%clk 0:01:20]} 24. Nxh6 {[%clk 0:01:26]}  b2 {[%clk 0:01:10]} 25. Bxb2 {[%clk 0:01:26]}  Rxh6 {[%clk 0:01:10]} 26. Bc1 {[%clk 0:01:22]}  Rxh3 {[%clk 0:01:09]} 27. gxh3 {[%clk 0:01:22]}  Bc6 {[%clk 0:01:02]} 28. Nh2 {[%clk 0:01:22]}  Ba4 {[%clk 0:00:50]} 29. Ng4 {[%clk 0:01:22]}  Bc2 {[%clk 0:00:50]} 30. Nf6 {[%clk 0:01:22]}  Bf5 {[%clk 0:00:46]} 31. h4 {[%clk 0:01:21]}  Qd8 {[%clk 0:00:44]} 32. Qe2 {[%clk 0:01:08]}  Be7 {[%clk 0:00:41]} 33. Bg5 {[%clk 0:01:05]}  Na4 {[%clk 0:00:36]} 34. Qd2 {[%clk 0:01:03]}  Rb8 {[%clk 0:00:35]} 35. Kf1 {[%clk 0:01:00]}  Rb3 {[%clk 0:00:35]} 36. Rc1 {[%clk 0:01:00]}  Bxa3 {[%clk 0:00:25]} 37. Ne4 {[%clk 0:00:53]}  Qd7 {[%clk 0:00:20]} 38. Nf6 {[%clk 0:00:50]}  Qb5 {[%clk 0:00:19]} 39. Re1 {[%clk 0:00:47]}  Nxc3 {[%clk 0:00:19]} 40. h5 {[%clk 0:00:47]}  gxh5 {[%clk 0:00:18]} 41. Bh4 {[%clk 0:00:46]}  Ne4 {[%clk 0:00:18]} 42. Qh6 {[%clk 0:00:46]}  c3+ {[%clk 0:00:17]} 43. Kg1 {[%clk 0:00:46]}  c2 {[%clk 0:00:17]} 44. Qh8 {[%clk 0:00:47]}  Rb1 {[%clk 0:00:17]} 45. Ne8+ {[%clk 0:00:41]}  Kb7 {[%clk 0:00:17]} 46. Nd6+ {[%clk 0:00:39]}  Bxd6 {[%clk 0:00:16]} 0-1


[Site "https://www.chess.com"]

[Event "Titled Tuesday Blitz April 4 Late 2023"]
[White "Bortnyk, Olexandr"]
[Black "Tifferet, Shaked"]
[WhiteFideId "14120828"]
[BlackFideId "2811529"]
[WhiteElo "2734"]
[BlackElo "2142"]
[Result "1-0"]
[Round "01"]
[TimeControl "180+2"]
[Date "2023.04.04"]
[WhiteClock "0:00:43"]
[BlackClock "0:00:05"]

1. d4 {[%clk 0:03:00]}  Nf6 {[%clk 0:02:58]} 2. Nc3 {[%clk 0:03:01]}  d5 {[%clk 0:02:57]} 3. Bf4 {[%clk 0:03:01]}  c6 {[%clk 0:02:54]} 4. e3 {[%clk 0:03:01]}  Bf5 {[%clk 0:02:48]} 5. Nf3 {[%clk 0:03:01]}  h6 {[%clk 0:02:46]} 6. Ne5 {[%clk 0:03:01]}  Nbd7 {[%clk 0:02:46]} 7. Bd3 {[%clk 0:02:59]}  Bxd3 {[%clk 0:02:45]} 8. cxd3 {[%clk 0:03:00]}  e6 {[%clk 0:02:44]} 9. O-O {[%clk 0:02:56]}  Nxe5 {[%clk 0:02:43]} 10. Bxe5 {[%clk 0:02:38]}  Be7 {[%clk 0:02:40]} 11. a3 {[%clk 0:02:36]}  O-O {[%clk 0:02:39]} 12. e4 {[%clk 0:02:26]}  c5 {[%clk 0:02:02]} 13. dxc5 {[%clk 0:01:57]}  dxe4 {[%clk 0:01:55]} 14. Bxf6 {[%clk 0:01:54]}  Bxf6 {[%clk 0:01:54]} 15. Nxe4 {[%clk 0:01:53]}  Bxb2 {[%clk 0:01:42]} 16. Rb1 {[%clk 0:01:53]}  Bd4 {[%clk 0:01:32]} 17. Rxb7 {[%clk 0:01:48]}  f5 {[%clk 0:01:31]} 18. Ng3 {[%clk 0:01:34]}  Bxc5 {[%clk 0:01:26]} 19. Qb3 {[%clk 0:01:30]}  Qd5 {[%clk 0:01:21]} 20. Qxd5 {[%clk 0:01:29]}  exd5 {[%clk 0:01:22]} 21. Rc1 {[%clk 0:01:30]}  Bb6 {[%clk 0:01:12]} 22. h4 {[%clk 0:01:22]}  Rae8 {[%clk 0:00:59]} 23. Kf1 {[%clk 0:01:03]}  Rc8 {[%clk 0:00:46]} 24. Rxc8 {[%clk 0:01:00]}  Rxc8 {[%clk 0:00:47]} 25. Nxf5 {[%clk 0:01:00]}  Rc1+ {[%clk 0:00:34]} 26. Ke2 {[%clk 0:01:00]}  Rc2+ {[%clk 0:00:35]} 27. Ke1 {[%clk 0:01:00]}  Rxf2 {[%clk 0:00:28]} 28. Ne7+ {[%clk 0:01:00]}  Kh7 {[%clk 0:00:17]} 29. Rxb6 {[%clk 0:00:59]}  Rxg2 {[%clk 0:00:10]} 30. Rb7 {[%clk 0:00:51]}  Rh2 {[%clk 0:00:04]} 31. Nf5 {[%clk 0:00:41]}  Rg2 {[%clk 0:00:03]} 32. Rxa7 {[%clk 0:00:40]}  Rg4 {[%clk 0:00:04]} 33. Rxg7+ {[%clk 0:00:39]}  Rxg7 {[%clk 0:00:04]} 34. Nxg7 {[%clk 0:00:40]}  Kxg7 {[%clk 0:00:04]} 35. a4 {[%clk 0:00:41]}  Kf6 {[%clk 0:00:05]} 36. a5 {[%clk 0:00:42]}  Ke7 {[%clk 0:00:05]} 37. a6 {[%clk 0:00:43]} 1-0


[Site "https://www.chess.com"]

[Event "Titled Tuesday Blitz April 4 Late 2023"]
[White "Svane, Rasmus"]
[Black "Kokoszczynski, Jan"]
[WhiteFideId "4657101"]
[BlackFideId "1174460"]
[WhiteElo "2597"]
[BlackElo "2139"]
[Result "1-0"]
[Round "01"]
[TimeControl "180+2"]
[Date "2023.04.04"]
[WhiteClock "0:02:16"]
[BlackClock "0:01:40"]

1. Nf3 {[%clk 0:03:00]}  Nf6 {[%clk 0:02:55]} 2. g3 {[%clk 0:03:00]}  d5 {[%clk 0:02:55]} 3. Bg2 {[%clk 0:03:00]}  e6 {[%clk 0:02:55]} 4. O-O {[%clk 0:03:00]}  Be7 {[%clk 0:02:54]} 5. c4 {[%clk 0:03:00]}  O-O {[%clk 0:02:54]} 6. b3 {[%clk 0:03:01]}  b6 {[%clk 0:02:54]} 7. d4 {[%clk 0:03:01]}  Bb7 {[%clk 0:02:54]} 8. Nc3 {[%clk 0:03:01]}  Nbd7 {[%clk 0:02:55]} 9. Bb2 {[%clk 0:03:01]}  c5 {[%clk 0:02:52]} 10. Ne1 {[%clk 0:02:59]}  Rc8 {[%clk 0:02:49]} 11. cxd5 {[%clk 0:02:59]}  exd5 {[%clk 0:02:44]} 12. Nc2 {[%clk 0:02:59]}  Re8 {[%clk 0:02:33]} 13. Rc1 {[%clk 0:02:50]}  Nf8 {[%clk 0:02:28]} 14. dxc5 {[%clk 0:02:44]}  Bxc5 {[%clk 0:02:24]} 15. e3 {[%clk 0:02:23]}  Ne6 {[%clk 0:02:09]} 16. Re1 {[%clk 0:02:22]}  Qd7 {[%clk 0:01:51]} 17. Ne2 {[%clk 0:02:18]}  Bb4 {[%clk 0:01:40]} 18. Nxb4 {[%clk 0:02:16]} 1-0


[Site "https://www.chess.com"]

[Event "Titled Tuesday Blitz April 4 Late 2023"]
[White "Maghsoodloo, Parham"]
[Black "Grycel, Kamil"]
[WhiteFideId "12539929"]
[BlackFideId "1115499"]
[WhiteElo "2647"]
[BlackElo "2519"]
[Result "1-0"]
[Round "01"]
[TimeControl "180+2"]
[Date "2023.04.04"]
[WhiteClock "0:02:06"]
[BlackClock "0:00:19"]

1. d4 {[%clk 0:03:00]}  d6 {[%clk 0:02:58]} 2. e4 {[%clk 0:02:59]}  Nf6 {[%clk 0:02:57]} 3. Nc3 {[%clk 0:02:59]}  c6 {[%clk 0:02:57]} 4. a4 {[%clk 0:02:58]}  a5 {[%clk 0:02:57]} 5. Nf3 {[%clk 0:02:57]}  Bg4 {[%clk 0:02:56]} 6. h3 {[%clk 0:02:55]}  Bxf3 {[%clk 0:02:55]} 7. Qxf3 {[%clk 0:02:56]}  e6 {[%clk 0:02:55]} 8. Bd3 {[%clk 0:02:54]}  d5 {[%clk 0:02:51]} 9. e5 {[%clk 0:02:54]}  Nfd7 {[%clk 0:02:51]} 10. Ne2 {[%clk 0:02:54]}  c5 {[%clk 0:02:49]} 11. c3 {[%clk 0:02:54]}  Nc6 {[%clk 0:02:49]} 12. O-O {[%clk 0:02:54]}  Qb6 {[%clk 0:02:46]} 13. Bb5 {[%clk 0:02:51]}  Be7 {[%clk 0:02:43]} 14. Be3 {[%clk 0:02:42]}  O-O {[%clk 0:02:35]} 15. Qg3 {[%clk 0:02:41]}  Kh8 {[%clk 0:02:33]} 16. f4 {[%clk 0:02:41]}  f5 {[%clk 0:02:30]} 17. Qf2 {[%clk 0:02:25]}  Rac8 {[%clk 0:02:22]} 18. Rfd1 {[%clk 0:02:15]}  Rc7 {[%clk 0:02:07]} 19. c4 {[%clk 0:02:11]}  dxc4 {[%clk 0:01:45]} 20. d5 {[%clk 0:02:11]}  exd5 {[%clk 0:01:37]} 21. Rxd5 {[%clk 0:02:12]}  Ndb8 {[%clk 0:01:05]} 22. Rxc5 {[%clk 0:02:10]}  Nb4 {[%clk 0:00:49]} 23. Rxc4 {[%clk 0:02:09]}  Rxc4 {[%clk 0:00:25]} 24. Bxb6 {[%clk 0:02:07]}  Rc2 {[%clk 0:00:26]} 25. Rc1 {[%clk 0:02:06]}  Rxb2 {[%clk 0:00:25]} 26. Rc7 {[%clk 0:02:06]}  Bd8 {[%clk 0:00:21]} 27. Rxb7 {[%clk 0:02:06]}  Bxb6 {[%clk 0:00:21]} 28. Qxb6 {[%clk 0:02:06]}  Nd7 {[%clk 0:00:19]} 29. Rxd7 {[%clk 0:02:06]} 1-0


[Site "https://www.chess.com"]

[Event "Titled Tuesday Blitz April 4 Late 2023"]
[White "Bluebaum, Matthias"]
[Black "Loiacono, Antonio"]
[WhiteFideId "24651516"]
[BlackFideId "895415"]
[WhiteElo "2638"]
[BlackElo "2257"]
[Result "1-0"]
[Round "01"]
[TimeControl "180+2"]
[Date "2023.04.04"]
[WhiteClock "0:02:01"]
[BlackClock "0:01:13"]

1. d4 {[%clk 0:03:00]}  Nf6 {[%clk 0:02:57]} 2. c4 {[%clk 0:03:00]}  c5 {[%clk 0:02:56]} 3. d5 {[%clk 0:03:00]}  b5 {[%clk 0:02:56]} 4. cxb5 {[%clk 0:03:01]}  a6 {[%clk 0:02:56]} 5. bxa6 {[%clk 0:03:02]}  d6 {[%clk 0:02:55]} 6. Nc3 {[%clk 0:03:03]}  Qa5 {[%clk 0:02:53]} 7. Bd2 {[%clk 0:03:01]}  Bxa6 {[%clk 0:02:50]} 8. e4 {[%clk 0:03:00]}  g6 {[%clk 0:02:46]} 9. Bxa6 {[%clk 0:02:56]}  Qxa6 {[%clk 0:02:46]} 10. Nge2 {[%clk 0:02:55]}  Bg7 {[%clk 0:02:41]} 11. O-O {[%clk 0:02:55]}  O-O {[%clk 0:02:41]} 12. a4 {[%clk 0:02:52]}  Nbd7 {[%clk 0:02:24]} 13. Qc2 {[%clk 0:02:51]}  Rfb8 {[%clk 0:02:17]} 14. Nb5 {[%clk 0:02:49]}  Qc8 {[%clk 0:02:10]} 15. Bc3 {[%clk 0:02:46]}  Ne8 {[%clk 0:02:04]} 16. Bxg7 {[%clk 0:02:43]}  Kxg7 {[%clk 0:02:05]} 17. Qc3+ {[%clk 0:02:35]}  Kg8 {[%clk 0:02:05]} 18. b4 {[%clk 0:02:33]}  Nc7 {[%clk 0:02:03]} 19. Nxc7 {[%clk 0:02:16]}  Qxc7 {[%clk 0:02:01]} 20. bxc5 {[%clk 0:02:09]}  Nxc5 {[%clk 0:02:00]} 21. Nd4 {[%clk 0:02:09]}  Qd7 {[%clk 0:01:48]} 22. Nc6 {[%clk 0:02:07]}  Rc8 {[%clk 0:01:40]} 23. Qc4 {[%clk 0:02:02]}  e6 {[%clk 0:01:22]} 24. a5 {[%clk 0:02:01]}  Nxe4 {[%clk 0:01:16]} 25. Qxe4 {[%clk 0:02:01]}  exd5 {[%clk 0:01:13]} 26. Ne7+ {[%clk 0:02:01]} 1-0


[Site "https://www.chess.com"]